bitfinex-derivatives/quotes_ETHF0:USTF0_20210111
["timestamp","ask_amount","ask_price","bid_price","bid_amount"]
[1610367818368,58.2129,1093.8,1090.8,5.51919]
[1610367818568,5.7594,1093.7,1090.8,5.51919]
[1610367818768,7.9328,1093.7,1090.8,5.51919]
[1610367818968,4.00959,1092.1,1091.8,4.00959]
[1610367819168,4.00959,1092.1,1090.8,1.77942007]
[1610367819570,2.38,1093.1,1090.8,1.77942007]
[1610367819970,2.38,1093.1,1090.9,0.26990102]
[1610367820174,2.38,1093.1,1090.9,2.12370102]
[1610367820372,2.38,1093.1,1091.0,0.26970021]
[1610367820572,2.38,1093.1,1090.9,0.26948998]
[1610367820972,4.00959,1091.5,1091.2,4.00959]
[1610367821372,4.00959,1091.5,1091.0,0.26930246]
[1610367821572,4.00959,1091.5,1090.9,0.26940048]
[1610367821772,1.8422,1092.9,1090.9,0.26940048]
[1610367821972,8.2095,1093.1,1090.8,1.5096]
[1610367822472,8.2095,1093.1,1090.8,2.1794]
[1610367823075,8.2095,1093.1,1092.1,4.00959]
[1610367823278,8.2095,1093.1,1091.7,1.7248]
[1610367825174,4.00959,1091.8,1091.7,1.7248]
[1610367825376,1.8186,1092.7,1091.7,1.7248]
[1610367826277,1.9895,1092.8,1091.7,1.7248]
[1610367827080,4.00959,1092.5,1091.9,4.00959]
[1610367827481,1.9895,1092.8,1091.9,4.00959]
[1610367828080,2.38,1093.1,1091.9,4.00959]
[1610367828279,6.2306,1093.6,1091.9,4.00959]
[1610367828680,2.1734,1093.7,1091.9,4.00959]
[1610367828880,1.02941746,1094.2,1091.9,4.00959]
[1610367829082,1.02941746,1094.2,1093.3,4.00959]
[1610367829083,4.00959,1093.5,1093.3,4.00959]
[1610367829283,6.24189,1093.5,1093.3,4.00959]
[1610367829682,6.24189,1093.5,1091.8,0.26654455]
[1610367830085,6.24189,1093.5,1091.8,1.8453]
[1610367831085,4.00959,1093.3,1093.2,4.00959]
[1610367831285,4.00959,1093.3,1092.2,3.7122]
[1610367831485,3.00959,1093.3,1092.2,3.7122]
[1610367832990,2.2323,1093.5,1092.7,4.00959]
[1610367833189,2.2323,1093.5,1092.7,5.83529]
[1610367833690,2.2323,1093.5,1092.7,1.8257]
[1610367834292,1.816,1093.8,1092.7,1.8257]
[1610367835013,4.00959,1093.0,1092.7,1.8257]
[1610367835595,6.06759,1093.0,1092.7,1.8257]
[1610367836293,6.06759,1093.0,1092.7,1.265]
[1610367836991,4.00959,1092.8,1092.7,1.265]
[1610367838004,2.058,1093.0,1092.7,1.265]
[1610367838896,2.058,1093.0,1092.8,2.29114709]
[1610367839296,4.00959,1092.9,1092.8,2.29114709]
[1610367840496,4.00959,1092.9,1092.8,1.29034709]
[1610367840896,5.82269,1092.9,1092.8,1.29034709]
[1610367841495,5.82269,1092.9,1092.3,4.00959]
[1610367841895,4.00959,1092.9,1091.6,2.16079199]
[1610367843197,1.058,1093.0,1091.6,2.16079199]
[1610367843401,2.2556,1093.3,1091.6,2.16079199]
[1610367843600,5.9858,1094.1,1091.6,2.16079199]
[1610367844800,5.9858,1094.1,1091.6,62.51559199]
[1610367845216,4.00959,1092.9,1092.4,4.00959]
[1610367845401,6.19279,1092.9,1092.4,4.00959]
[1610367845801,6.19279,1092.9,1091.7,2.16011616]
[1610367847103,4.00959,1091.9,1091.7,2.16011616]
[1610367847303,2.1552,1091.9,1091.7,2.16011616]
[1610367849107,4.00959,1091.8,1091.7,2.05481616]
[1610367849306,4.00959,1091.8,1091.0,72.853]
[1610367849710,4.00959,1091.8,1090.2,63.8566]
[1610367849908,4.00959,1091.8,1090.1,0.26379935]
[1610367850107,4.00959,1091.8,1088.9,1.8228]
[1610367850108,4.00959,1091.8,1089.7,0.26425981]
[1610367850307,5.85879,1091.8,1089.6,0.26410135]
[1610367850709,5.8815,1091.7,1089.6,0.26410135]
[1610367851109,4.00959,1089.7,1089.5,0.26393737]
[1610367851307,4.00959,1089.7,1089.3,0.26415231]
[1610367851707,4.00959,1089.7,1089.0,0.26448564]
[1610367851907,4.00959,1089.7,1088.8,0.2648913]
[1610367852307,4.00959,1089.7,1088.7,0.26502063]
[1610367852907,4.00959,1089.7,1088.9,0.26510227]
[1610367853111,4.00959,1089.3,1088.9,4.00959]
[1610367853416,6.47239,1089.3,1088.9,4.00959]
[1610367853608,6.47239,1089.3,1088.8,1.78936085]
[1610367853818,6.47239,1089.3,1088.8,2.05542504]
[1610367854509,6.47239,1089.3,1088.8,1.78936085]
[1610367854909,6.47239,1089.3,1088.9,1.79099012]
[1610367855116,4.00959,1089.0,1088.9,1.79099012]
[1610367855316,5.83829,1089.0,1088.9,1.79099012]
[1610367856316,5.83829,1089.0,1088.6,0.26619887]
[1610367856717,5.83829,1089.0,1088.9,0.26581069]
[1610367857721,5.83829,1089.0,1088.9,1.78958738]
[1610367859318,5.83829,1089.0,1088.8,2.26121281]
[1610367860620,5.83829,1089.0,1088.6,2.19976762]
[1610367861220,4.00959,1088.7,1088.6,2.19976762]
[1610367861621,6.15419,1088.7,1088.6,2.19976762]
[1610367861821,6.15419,1088.7,1088.5,2.19969208]
[1610367862223,6.15419,1088.7,1088.5,0.11389208]
[1610367862420,8.01609,1088.7,1088.5,0.11389208]
[1610367863221,6.15419,1088.7,1088.6,1.62120656]
[1610367863822,6.15419,1088.7,1088.6,0.61970656]
[1610367864422,6.15419,1088.7,1088.6,0.13730656]
[1610367864723,6.15419,1088.7,1088.2,0.26493533]
[1610367864922,6.15419,1088.7,1088.1,1.256e-05]
[1610367865122,4.00959,1088.2,1088.1,1.256e-05]
[1610367866123,4.00959,1088.2,1088.1,1.41956054]
[1610367867624,4.00959,1088.2,1088.1,0.03624798]
[1610367867826,4.00959,1088.2,1087.9,2.65564847]
[1610367868228,4.00959,1088.2,1087.9,1.8591]
[1610367868427,4.00959,1088.2,1087.8,0.7961619]
[1610367868628,5.83629,1088.2,1087.7,1.06216704]
[1610367869030,5.83629,1088.2,1087.4,1.06269898]
[1610367869229,1.8267,1088.2,1088.0,1.39678554]
[1610367869428,1.8267,1088.2,1088.0,3.21908554]
[1610367869827,1.9917,1088.4,1088.0,3.21908554]
[1610367869828,1.9917,1088.4,1088.0,2.31188554]
[1610367870433,2.1446,1088.7,1088.0,0.48958554]
[1610367870632,2.1446,1088.7,1088.1,1.39675267]
[1610367870833,1.8349,1088.8,1088.1,1.39675267]
[1610367871234,4.00959,1088.2,1088.1,1.39675267]
[1610367872033,2.1401,1088.5,1088.0,3.22452488]
[1610367872434,2.4628,1089.3,1088.0,3.22452488]
[1610367872634,2.4628,1089.3,1088.0,5.46602488]
[1610367872834,6.1104,1091.1,1088.0,6.79199876]
[1610367873036,5.9456,1091.0,1088.0,6.79199876]
[1610367873236,4.00959,1090.1,1090.0,4.00959]
[1610367873435,1.8512,1090.1,1090.0,4.00959]
[1610367874235,1.8405,1092.2,1090.0,4.00959]
[1610367874635,1.7481,1090.7,1090.0,5.40397047]
[1610367874836,0.3743,1090.7,1090.0,5.40397047]
[1610367875035,1.5813,1090.7,1090.0,5.40397047]
[1610367875235,1.5813,1090.7,1090.6,4.00959]
[1610367875435,1.4221,1090.7,1090.6,4.00959]
[1610367875839,0.2867,1090.7,1090.6,4.00959]
[1610367876039,5.9208,1092.4,1090.6,5.40327525]
[1610367876241,1.8197,1092.8,1090.6,7.23967525]
[1610367876442,5.7407,1093.1,1090.6,9.04887525]
[1610367877041,5.7407,1093.1,1090.6,9.31137788]
[1610367877242,4.00959,1092.0,1091.6,4.00959]
[1610367878243,4.00959,1092.0,1090.8,0.26225283]
[1610367879045,4.00959,1092.0,1090.6,2.099238]
[1610367879249,4.00959,1092.0,1091.6,4.00959]
[1610367879444,2.4721,1092.2,1091.6,4.00959]
[1610367879643,2.4721,1092.2,1091.3,1.9204]
[1610367880844,2.4721,1092.2,1090.9,1.7137]
[1610367881244,2.4721,1092.2,1092.0,4.00959]
[1610367882048,2.4721,1092.2,1091.3,2.3849]
[1610367882448,2.4868,1092.2,1091.4,64.3612]
[1610367883047,32.4868,1092.2,1091.4,64.3612]
[1610367883249,32.4868,1092.2,1090.9,1.7137]
[1610367883448,4.00959,1091.5,1090.9,1.7137]
[1610367883651,35.79459,1091.5,1090.6,1.8364]
[1610367883849,5.79459,1091.5,1090.2,1.90000527]
[1610367884049,30.0,1091.4,1090.2,0.6429]
[1610367884263,30.0,1091.4,1089.7,0.79471662]
[1610367884452,30.0,1091.4,1089.7,0.26514212]
[1610367884652,30.0,1091.4,1089.5,0.26520788]
[1610367885147,30.0,1091.4,1089.3,0.2654797]
[1610367885348,4.00959,1089.4,1089.2,0.26568334]
[1610367885748,4.00959,1089.4,1089.0,75.83135826]
[1610367886149,4.00959,1089.4,1089.0,75.5654]
[1610367886548,5.84869,1089.4,1089.0,75.5654]
[1610367886748,4.00959,1089.4,1089.0,75.5654]
[1610367886950,4.00959,1089.4,1088.8,0.26617538]
[1610367887349,4.00959,1089.2,1089.1,1.39514786]
[1610367888549,1.2749,1089.3,1089.1,1.39514786]
[1610367888749,0.8719,1089.3,1088.8,1.3952768]
[1610367889149,0.8719,1089.3,1088.8,1.66094618]
[1610367889350,4.00959,1088.9,1088.8,1.3952768]
[1610367890050,4.00959,1088.9,1088.6,0.2657675]
[1610367890250,0.8719,1089.3,1088.6,0.2657675]
[1610367890652,0.8719,1089.3,1088.7,0.26565905]
[1610367891065,0.8719,1089.3,1088.6,0.26601549]
[1610367891451,0.8719,1089.3,1088.8,5.40492327]
[1610367891854,2.0567,1089.6,1088.8,5.40492327]
[1610367892051,1.8426,1089.9,1088.8,5.40492327]
[1610367892652,1.8426,1089.9,1088.9,1.39526763]
[1610367892853,59.2143,1090.8,1088.9,1.39526763]
[1610367893453,4.00959,1089.1,1089.0,4.00959]
[1610367893654,1.8552,1089.1,1089.0,4.00959]
[1610367894054,1.8313,1089.6,1089.0,4.00959]
[1610367894255,1.8313,1089.6,1089.0,5.66950058]
[1610367894656,1.8313,1089.6,1089.3,0.26425742]
[1610367894858,59.2143,1090.8,1089.3,0.26425742]
[1610367895356,59.2143,1090.8,1089.2,0.26397451]
[1610367895561,4.00959,1089.4,1089.1,0.26412669]
[1610367895963,5.87089,1089.4,1088.9,0.26449161]
[1610367896161,4.00959,1089.4,1088.9,0.26449161]
[1610367896359,4.00959,1089.4,1088.8,0.26461707]
[1610367896963,4.00959,1089.4,1088.7,2.07654461]
[1610367897160,4.00959,1089.4,1089.0,1.39509441]
[1610367897561,4.00959,1089.1,1089.0,1.39509441]
[1610367898362,4.00959,1089.1,1088.8,1.39534141]
[1610367898763,1.7698,1089.6,1088.8,1.39534141]
[1610367899164,1.7698,1089.6,1088.8,1.65975906]
[1610367899376,1.7698,1089.6,1088.8,1.39534141]
[1610367899573,4.00959,1088.9,1088.8,1.39534141]
[1610367899772,1.7698,1089.6,1088.8,1.39534141]
[1610367899984,1.7698,1089.6,1088.9,1.39504561]
[1610367900371,1.9825,1089.9,1088.9,1.65912872]
[1610367900567,1.9825,1089.9,1088.9,0.26408311]
[1610367900767,1.9825,1089.9,1089.2,0.2627956]
[1610367900967,1.9825,1089.9,1089.2,2.0780956]
[1610367901569,4.00959,1089.3,1089.2,2.0780956]
[1610367901769,1.9825,1089.9,1089.2,1.8153]
[1610367902269,1.9825,1089.9,1089.1,0.26139082]
[1610367902471,1.9825,1089.9,1089.3,1.39434852]
[1610367903274,1.9825,1089.9,1089.3,0.43644852]
[1610367903479,4.00959,1089.4,1089.3,0.43644852]
[1610367903876,4.00959,1089.4,1089.1,1.39501324]
[1610367904479,4.00959,1089.4,1089.1,0.92721324]
[1610367904678,4.00959,1089.4,1089.1,0.50751324]
[1610367905280,4.00959,1089.4,1089.2,1.3955618]
[1610367905478,4.00959,1089.4,1089.2,1.2278618]
[1610367905678,4.00959,1089.4,1088.3,0.26296846]
[1610367906085,4.00959,1089.4,1088.2,0.2631665]
[1610367906679,4.00959,1089.4,1088.4,1.39580268]
[1610367907480,4.00959,1088.5,1088.4,1.39580268]
[1610367907687,5.78609,1088.5,1088.4,1.39580268]
[1610367907891,1.66159,1088.5,1088.4,1.39580268]
[1610367908093,1.66159,1088.5,1088.4,0.26311002]
[1610367908289,2.2245,1088.8,1088.3,1.39565159]
[1610367908488,0.3947,1088.8,1088.4,0.52575958]
[1610367908683,1.5743,1089.6,1088.6,0.2625758]
[1610367908880,1.9825,1089.9,1088.6,2.0811758]
[1610367909079,1.9825,1089.9,1088.7,0.52413373]
[1610367909279,1.9825,1089.9,1088.8,0.261999]
[1610367909480,4.00959,1089.5,1089.1,4.00959]
[1610367909680,7.51609,1089.5,1089.1,5.85959]
[1610367909880,3.5065,1089.5,1089.1,4.00959]
[1610367910080,1.6512,1089.5,1089.1,4.00959]
[1610367910282,1.6512,1089.5,1088.8,0.261999]
[1610367910881,1.6512,1089.5,1089.2,1.3950331]
[1610367911482,4.00959,1089.3,1089.2,1.3950331]
[1610367912081,4.00959,1089.3,1088.7,1.39555564]
[1610367913482,4.00959,1088.8,1088.4,0.26307241]
[1610367913684,6.14529,1088.8,1088.3,0.26312735]
[1610367913883,6.14529,1088.8,1088.2,0.26320704]
[1610367914281,6.14529,1088.8,1088.0,66.43521587]
[1610367914881,6.14529,1088.8,1088.3,1.39583512]
[1610367915582,4.00959,1088.4,1088.3,1.39583512]
[1610367916183,4.00959,1088.4,1088.1,1.657384]
[1610367916382,4.00959,1088.4,1088.1,1.39573036]
[1610367917584,4.00959,1088.2,1088.1,1.39573036]
[1610367918185,6.02739,1088.2,1088.1,1.39573036]
[1610367918385,6.02739,1088.2,1088.0,66.1721]
[1610367919184,6.02739,1088.2,1088.1,1.39619349]
[1610367920989,6.02739,1088.2,1088.1,0.02399349]
[1610367922191,6.02739,1088.2,1087.9,1.39597064]
[1610367922791,7.86969,1088.2,1087.9,1.39597064]
[1610367922990,6.02739,1088.2,1087.9,1.39597064]
[1610367923392,6.02739,1088.2,1087.8,1.39615832]
[1610367923595,4.00959,1087.9,1087.8,1.39615832]
[1610367923795,6.43399,1087.9,1087.8,1.39615832]
[1610367924799,6.43399,1087.9,1087.7,1.39635423]
[1610367925601,6.43399,1087.9,1087.2,0.7834829]
[1610367926000,6.43399,1087.9,1087.2,8.29e-05]
[1610367926201,6.43399,1087.9,1086.8,1.0470209]
[1610367926402,6.43399,1087.9,1087.8,1.39685342]
[1610367927404,8.29289,1087.9,1087.8,1.39685342]
[1610367927703,8.29289,1087.9,1087.1,2.44371321]
[1610367928104,6.43399,1087.9,1087.1,2.44371321]
[1610367928305,6.43399,1087.9,1087.1,1.39658767]
[1610367928705,6.43399,1087.9,1087.1,2.44181702]
[1610367929504,4.00959,1087.2,1087.1,2.44181702]
[1610367929706,4.00959,1087.2,1087.1,1.39658767]
[1610367930105,4.00959,1087.2,1087.1,2.69931936]
[1610367930305,4.00959,1087.2,1087.1,2.43916507]
[1610367931008,4.00959,1087.2,1087.1,1.39658767]
[1610367931606,4.00959,1087.2,1087.1,2.69551909]
[1610367932309,4.00959,1087.2,1087.1,2.43394762]
[1610367932707,4.00959,1087.2,1087.1,1.39658767]
[1610367932907,4.00959,1087.2,1087.1,2.43320901]
[1610367933208,4.00959,1087.2,1087.1,1.39658767]
[1610367934007,4.00959,1087.2,1087.1,1.28048767]
[1610367935410,2.4244,1087.9,1087.1,3.50198767]
[1610367935610,4.00959,1087.6,1087.1,3.50198767]
[1610367935811,4.00959,1087.6,1087.3,0.25897583]
[1610367937111,4.00959,1087.6,1087.4,0.25887886]
[1610367937511,4.00959,1087.6,1087.4,1.6551718]
[1610367938513,4.00959,1087.6,1087.4,1.39629294]
[1610367938912,4.00959,1087.6,1087.5,1.39683811]
[1610367940313,4.00959,1087.6,1087.3,0.25998894]
[1610367940514,4.00959,1087.6,1087.4,0.26032318]
[1610367941317,4.00959,1087.6,1087.3,0.26089406]
[1610367941514,2.0178,1088.2,1087.5,1.39669741]
[1610367941716,2.4118,1088.5,1087.5,1.39669741]
[1610367941917,67.4302,1088.6,1087.5,1.39669741]
[1610367942317,69.2637,1088.6,1087.5,1.39669741]
[1610367942518,67.4302,1088.6,1087.5,1.39669741]
[1610367942917,67.4302,1088.6,1087.3,1.3968797]
[1610367943518,4.00959,1087.4,1087.3,1.3968797]
[1610367944320,6.13629,1087.4,1087.1,1.65668379]
[1610367945521,4.00959,1087.2,1087.1,1.65668379]
[1610367945720,4.00959,1087.2,1087.1,0.25994179]
[1610367945923,4.00959,1087.2,1087.1,0.51621186]
[1610367946524,4.00959,1087.2,1087.0,0.25806018]
[1610367946922,4.00959,1087.2,1087.1,0.5160027]
[1610367947123,4.00959,1087.2,1087.1,1.91251578]
[1610367950226,4.00959,1087.2,1087.1,0.91251578]
[1610367950626,4.00959,1087.2,1087.0,0.77208559]
[1610367951026,4.00959,1087.2,1086.9,0.2574484]
[1610367951027,5.52039,1087.2,1086.9,0.2574484]
[1610367951226,5.52039,1087.2,1086.8,0.25761302]
[1610367951426,5.52039,1087.2,1087.1,1.39712326]
[1610367952831,5.52039,1087.2,1086.9,1.39702433]
[1610367953531,4.00959,1087.0,1086.9,1.39702433]
[1610367953731,4.00959,1087.0,1086.9,1.65439873]
[1610367955032,4.00959,1087.0,1086.9,1.39702433]
[1610367955332,4.00959,1087.0,1086.9,1.65400492]
[1610367956433,4.00959,1087.0,1086.9,1.39702433]
[1610367956638,4.00959,1087.0,1086.9,1.65445092]
[1610367957039,1.5108,1087.2,1086.9,2.16810667]
[1610367957236,1.6571,1087.5,1086.9,2.16810667]
[1610367957435,1.6265,1087.9,1087.0,0.77025593]
[1610367957638,21.23452924,1090.3,1087.8,4.00959]
[1610367958038,5.7917,1090.4,1087.8,4.26536182]
[1610367958236,1.8342,1089.5,1087.8,4.26536182]
[1610367958437,1.8342,1089.5,1088.1,0.255465]
[1610367958636,1.8334,1090.2,1088.1,0.255465]
[1610367958937,1.8334,1090.2,1088.3,0.25516799]
[1610367959137,1.8363,1090.8,1088.3,0.25516799]
[1610367959337,1.8195,1091.1,1088.3,0.25516799]
[1610367959540,4.00959,1089.2,1088.9,4.00959]
[1610367959737,5.63939,1089.2,1088.9,4.00959]
[1610367960338,1.6298,1089.2,1088.9,4.00959]
[1610367960540,21.21173658,1091.4,1088.9,4.00959]
[1610367960939,21.21173658,1091.4,1089.0,1.39447923]
[1610367961538,21.21173658,1091.4,1089.6,4.00959]
[1610367961539,4.00959,1089.8,1089.6,4.00959]
[1610367961739,6.03749,1089.8,1089.6,4.00959]
[1610367962339,6.03749,1089.8,1089.7,1.39426544]
[1610367962540,2.0279,1089.8,1089.7,1.39426544]
[1610367963541,6.03749,1089.8,1089.7,1.39426544]
[1610367963941,2.0279,1089.8,1089.7,1.39426544]
[1610367964141,21.20312425,1091.6,1089.7,1.39426544]
[1610367964341,1.8234,1091.9,1089.7,1.39426544]
[1610367964342,21.19871396,1091.8,1089.7,1.39426544]
[1610367964843,21.19512,1092.0,1089.7,1.39426544]
[1610367965253,21.19441135,1092.1,1089.6,1.39365226]
[1610367965644,4.00959,1090.7,1090.5,4.00959]
[1610367966252,4.00959,1090.7,1089.6,1.39365226]
[1610367966646,1.8389,1091.0,1089.5,1.6887]
[1610367967259,1.8389,1091.0,1089.5,1.94583103]
[1610367967660,4.00959,1090.0,1089.5,1.94583103]
[1610367967859,4.00959,1090.0,1089.6,1.3936198]
[1610367969266,4.00959,1090.0,1089.1,56.7104]
[1610367969447,5.97929,1090.0,1089.1,56.7104]
[1610367969647,4.00959,1089.2,1089.1,56.7104]
[1610367969849,5.83189,1089.2,1089.1,56.7104]
[1610367970646,1.8223,1089.2,1089.1,56.7104]
[1610367971645,1.8223,1089.2,1089.1,60.71999]
[1610367972447,1.231,1089.2,1089.1,60.71999]
[1610367973545,1.8743,1089.5,1089.1,60.71999]
[1610367973745,1.8743,1089.5,1089.1,62.11455644]
[1610367975146,1.8743,1089.5,1089.2,1.39448429]
[1610367975346,1.9697,1090.0,1089.2,1.39448429]
[1610367975546,2.3946,1090.7,1089.2,1.39448429]
[1610367975754,4.00959,1090.5,1089.9,4.00959]
[1610367975954,6.20389,1090.5,1089.2,1.39448429]
[1610367976760,6.20389,1090.5,1089.2,1.64810592]
[1610367976956,6.20389,1090.5,1089.3,0.25339747]
[1610367977356,6.20389,1090.5,1089.4,0.25312995]
[1610367977753,6.20389,1090.5,1090.1,4.00959]
[1610367978953,2.1943,1090.5,1090.1,4.00959]
[1610367979153,2.1943,1090.5,1090.2,1.3936722]
[1610367979753,2.1943,1090.5,1090.4,4.00959]
[1610367980555,2.1943,1090.5,1090.4,5.40322332]
[1610367980758,2.1943,1090.5,1090.4,1.39363332]
[1610367981157,1.8389,1091.0,1090.4,1.39363332]
[1610367981355,5.8888,1092.2,1090.4,1.39363332]
[1610367981758,4.00959,1091.1,1090.9,4.00959]
[1610367981957,5.67069,1091.1,1090.9,4.00959]
[1610367982560,1.6611,1091.1,1090.9,4.00959]
[1610367983156,0.8164,1091.1,1090.9,4.00959]
[1610367983357,1.5263,1091.2,1090.9,4.00959]
[1610367983756,1.296,1091.2,1091.1,4.00959]
[1610367984961,6.0676,1094.1,1091.1,4.00959]
[1610367985159,1.8307,1093.7,1091.1,4.00959]
[1610367985559,76.2863,1093.3,1091.1,4.00959]
[1610367985760,4.00959,1092.3,1092.1,4.00959]
[1610367986159,5.89049,1092.3,1091.2,1.3922888]
[1610367987362,1.8809,1092.3,1091.2,1.3922888]
[1610367987762,1.8809,1092.3,1090.7,61.6717]
[1610367989863,4.00959,1092.1,1090.7,61.6717]
[1610367990466,4.00959,1092.1,1090.5,1.5552]
[1610367990664,76.51879,1092.1,1090.5,1.5552]
[1610367990866,76.51879,1092.1,1090.2,2.3355]
[1610367991064,76.51879,1092.1,1089.9,0.2517048]
[1610367991264,6.2342,1092.0,1089.9,0.2517048]
[1610367991467,12.2898,1092.0,1089.9,0.2517048]
[1610367991665,14.4346,1092.0,1089.9,0.2517048]
[1610367991866,14.4346,1092.0,1089.7,0.25235397]
[1610367992067,14.4346,1092.0,1089.6,72.58780793]
[1610367992068,14.4346,1092.0,1089.6,72.33591802]
[1610367993267,14.4346,1092.0,1089.7,1.39391797]
[1610367993467,14.4346,1092.0,1089.7,1.64654231]
[1610367993768,4.00959,1090.4,1090.1,4.00959]
[1610367993966,1.7501,1091.1,1090.1,4.00959]
[1610367994367,1.7501,1091.1,1090.1,6.36159]
[1610367995469,8.379,1092.0,1090.1,6.36159]
[1610367995671,2.1448,1092.0,1090.1,6.36159]
[1610367995869,2.1448,1092.0,1091.1,4.00959]
[1610367996670,72.5092,1092.1,1091.1,4.00959]
[1610367997471,72.5092,1092.1,1090.4,1.6608]
[1610367997872,4.00959,1090.8,1090.4,1.6608]
[1610367998672,4.00959,1090.8,1089.9,0.75733086]
[1610367998673,5.60659,1090.8,1089.9,0.25292508]
[1610367998877,5.60659,1090.8,1089.8,0.25310588]
[1610367999272,5.60659,1090.8,1089.7,0.25325984]
[1610367999473,5.60659,1090.8,1090.5,1.39391129]
[1610367999873,4.00959,1090.6,1090.5,1.39391129]
[1610368000675,4.00959,1090.6,1089.7,1.39475473]
[1610368001873,4.00959,1089.8,1089.7,1.39475473]
[1610368002076,4.00959,1089.8,1089.6,72.0831]
[1610368003277,6.15519,1089.8,1088.5,0.25527766]
[1610368003479,6.15519,1089.8,1088.6,0.25543825]
[1610368003677,6.15519,1089.8,1088.5,0.25532841]
[1610368003878,4.00959,1089.2,1088.8,4.00959]
[1610368004077,2.3656,1089.2,1088.6,0.2551117]
[1610368005882,4.00959,1089.1,1088.6,0.2551117]
[1610368006280,4.00959,1089.1,1088.5,0.25473866]
[1610368006481,4.00959,1089.1,1088.4,61.0982732]
[1610368007082,2.3656,1089.2,1088.4,60.8436]
[1610368007783,4.00959,1089.1,1088.8,4.00959]
[1610368008385,4.00959,1089.1,1088.4,0.25460628]
[1610368008989,4.00959,1089.1,1088.2,0.25497842]
[1610368009388,4.00959,1089.1,1088.1,0.25512391]
[1610368009889,4.00959,1088.2,1088.1,0.25512391]
[1610368010088,4.00959,1088.2,1088.0,2.11801036]
[1610368010891,5.96319,1088.2,1088.0,0.25531036]
[1610368011091,5.96319,1088.2,1087.8,0.25555828]
[1610368011889,4.00959,1087.9,1087.8,0.25555828]
[1610368012089,4.00959,1087.9,1087.8,0.51044092]
[1610368012290,6.46849,1087.9,1087.7,55.43820573]
[1610368012589,6.46849,1087.9,1087.8,0.25504301]
[1610368013391,6.46849,1087.9,1087.8,0.50808518]
[1610368013790,2.4589,1087.9,1087.8,4.51767518]
[1610368013990,5.8978,1089.1,1087.8,4.51767518]
[1610368013991,2.3656,1089.2,1087.8,6.28938909]
[1610368014190,23.46561879,1091.8,1087.8,6.28938909]
[1610368014191,6.0779,1090.8,1087.8,6.28938909]
[1610368014392,6.0779,1090.8,1088.1,0.50570182]
[1610368014592,6.0779,1090.8,1088.4,0.2525557]
[1610368014791,6.0779,1090.8,1088.4,3.8557557]
[1610368014991,6.0779,1090.8,1088.6,0.25210591]
[1610368014992,5.9547,1090.7,1088.6,0.25210591]
[1610368015191,7.8443,1090.7,1088.6,0.25210591]
[1610368015393,7.8443,1090.7,1088.7,0.25183003]
[1610368015593,80.8022,1090.7,1089.0,0.25166131]
[1610368015794,4.00959,1089.9,1089.4,4.00959]
[1610368015994,4.00959,1089.9,1089.0,1.98876131]
[1610368016200,6.26239,1089.9,1089.0,1.98876131]
[1610368016600,6.26239,1089.9,1089.0,1.7371]
[1610368017294,6.26239,1089.9,1088.8,0.25208374]
[1610368017495,6.26239,1089.9,1088.7,1.5464]
[1610368017896,4.00959,1089.2,1088.7,1.5464]
[1610368018495,4.00959,1089.2,1088.6,4.00959]
[1610368018697,4.00959,1089.2,1088.5,0.25261535]
[1610368018895,4.00959,1089.2,1088.4,1.7571]
[1610368019797,4.00959,1089.2,1088.3,0.25322481]
[1610368019998,4.00959,1088.4,1088.2,0.25372837]
[1610368020600,4.00959,1088.4,1087.9,72.56278521]
[1610368021005,4.00959,1088.4,1087.9,72.3091]
[1610368021802,4.00959,1088.4,1087.9,72.56243613]
[1610368022003,4.00959,1088.2,1088.0,0.25310711]
[1610368022400,5.68679,1088.2,1087.9,72.56233587]
[1610368023001,5.68679,1088.2,1087.9,72.3091]
[1610368023202,5.68679,1088.2,1087.9,0.25306978]
[1610368024003,4.00959,1088.0,1087.9,0.25306978]
[1610368024203,1.6772,1088.2,1087.9,0.25306978]
[1610368024404,2.0112,1088.5,1087.9,0.25306978]
[1610368024606,2.0112,1088.5,1088.0,0.25312387]
[1610368024807,55.9729,1089.2,1088.3,0.25274591]
[1610368025005,55.9729,1089.2,1088.3,1.92504591]
[1610368025206,5.9038,1090.8,1088.4,0.25258242]
[1610368025207,51.8613,1090.4,1088.4,0.25258242]
[1610368025405,5.9038,1090.8,1088.4,30.25258242]
[1610368025607,5.9038,1090.8,1088.5,0.25234622]
[1610368026007,4.00959,1090.5,1088.8,0.25199316]
[1610368026207,2.4617,1090.5,1088.8,2.10969316]
[1610368026408,2.4617,1090.5,1089.2,0.2512829]
[1610368026607,2.4617,1090.5,1089.2,2.4576829]
[1610368027007,2.4617,1090.5,1089.2,32.4576829]
[1610368027409,79.4059,1091.4,1089.2,32.4576829]
[1610368027808,79.4059,1091.4,1089.3,0.25115243]
[1610368028008,4.00959,1090.6,1090.1,4.00959]
[1610368028207,4.00959,1090.6,1089.3,0.25115243]
[1610368028809,4.00959,1090.6,1089.2,2.2064]
[1610368030008,4.00959,1089.3,1089.2,2.2064]
[1610368030209,1.815,1090.0,1089.2,2.2064]
[1610368030608,2.4586,1090.7,1089.3,30.0]
[1610368031010,2.4586,1090.7,1089.4,0.2508894]
[1610368031209,29.31386455,1093.2,1089.4,0.2508894]
[1610368031409,29.31386455,1093.2,1089.6,0.25056911]
[1610368031410,5.8759,1093.2,1089.6,0.25056911]
[1610368031611,5.8759,1093.2,1089.6,1.88336911]
[1610368031809,5.8759,1093.2,1089.7,0.25039593]
[1610368032009,5.8759,1093.2,1090.5,4.00959]
[1610368032911,5.8759,1093.2,1090.6,30.0]
[1610368033310,8.68763092,1093.1,1090.5,4.00959]
[1610368033713,10.49293092,1093.1,1090.5,4.00959]
[1610368033913,4.00959,1091.8,1090.2,2.4745044]
[1610368034114,1.562,1091.8,1090.2,2.4745044]
[1610368034313,1.562,1091.8,1090.3,30.0]
[1610368034815,1.562,1091.8,1090.3,30.24689116]
[1610368035515,1.562,1091.8,1090.3,0.24689116]
[1610368035917,4.00959,1091.4,1091.3,4.00959]